bitfinex/quotes_BTCUSD_20251010
["timestamp","ask_amount","ask_price","bid_price","bid_amount"]
[1760069263316,0.41750821,121400.0,121390.0,0.21487821]
[1760069263527,0.41850821,121400.0,121390.0,0.21487821]
[1760069263985,0.41850821,121400.0,121390.0,0.05012]
[1760069264172,0.41851956,121400.0,121390.0,0.0584629]
[1760069264417,0.41851956,121400.0,121390.0,0.05012]
[1760069264664,0.41751956,121400.0,121390.0,0.05012]
[1760069264907,0.41851956,121400.0,121390.0,0.05012]
[1760069272472,0.18539956,121400.0,121390.0,0.05012]
[1760069272687,0.18539956,121400.0,121370.0,0.01152]
[1760069272688,0.16475821,121390.0,121370.0,0.01152]
[1760069272905,0.91460388,121380.0,121370.0,0.01152]
[1760069273111,0.42099773,121380.0,121370.0,0.03646]
[1760069273323,0.42099773,121380.0,121370.0,0.05228]
[1760069273977,0.42099773,121380.0,121370.0,0.02734]
[1760069273978,0.70458982,121380.0,121370.0,0.02734]
[1760069274204,0.93766982,121380.0,121370.0,0.02734]
[1760069274625,0.93766982,121380.0,121370.0,0.05228]
[1760069275085,0.42095773,121380.0,121370.0,0.05228]
[1760069277397,0.42095672,121380.0,121370.0,0.05228]
[1760069277655,0.39785179,121380.0,121370.0,0.05228]
[1760069278332,0.39939604,121380.0,121370.0,0.05228]
[1760069280602,0.16631604,121380.0,121370.0,0.05228]
[1760069280815,0.39943604,121380.0,121370.0,0.05228]
[1760069281026,0.16631604,121380.0,121370.0,0.05228]
[1760069281492,0.39939604,121380.0,121370.0,0.05228]
[1760069282365,0.16631604,121380.0,121370.0,0.43948518]
[1760069282583,0.39943604,121380.0,121370.0,0.43948518]
[1760069283042,0.00154425,121380.0,121370.0,0.55706536]
[1760069283282,0.00785656,121400.0,121390.0,0.16475821]
[1760069283469,0.2332313,121400.0,121390.0,0.59615921]
[1760069283739,0.0001513,121400.0,121390.0,0.55599821]
[1760069283960,0.0001513,121400.0,121390.0,0.94320339]
[1760069284209,0.25070365,121430.0,121410.0,0.16472508]
[1760069284441,0.17268729,121430.0,121420.0,0.05124]
[1760069284675,0.49148729,121430.0,121420.0,0.05124]
[1760069285627,0.87869247,121430.0,121420.0,0.02772]
[1760069286094,0.49148729,121430.0,121420.0,0.05124]
[1760069286314,0.79297247,121430.0,121420.0,0.05124]
[1760069286754,0.40576729,121430.0,121420.0,0.05124]
[1760069286974,0.79297247,121430.0,121420.0,0.05124]
[1760069287439,0.16598365,121430.0,121420.0,0.05124]
[1760069287647,0.39906365,121430.0,121420.0,0.05124]
[1760069287915,0.40006365,121430.0,121420.0,0.05124]
[1760069289052,0.16698365,121430.0,121420.0,0.05124]
[1760069289267,0.0022,121430.0,121420.0,0.61963443]
[1760069289487,0.0022,121430.0,121420.0,0.60316268]
[1760069289488,0.23785237,121430.0,121420.0,0.60316268]
[1760069289914,0.00477237,121430.0,121420.0,0.60316268]
[1760069290132,0.23785237,121430.0,121420.0,0.60316268]
[1760069290785,0.00477237,121430.0,121420.0,0.5559575]
[1760069291033,0.00477237,121430.0,121420.0,0.94316268]
[1760069291477,0.00377237,121430.0,121420.0,0.94316268]
[1760069292403,0.00277237,121430.0,121420.0,0.94316268]
[1760069292618,0.00277237,121430.0,121420.0,0.5559575]
[1760069292839,0.00277237,121430.0,121420.0,0.94316268]
[1760069293079,0.55468149,121430.0,121420.0,0.02772]
[1760069293302,0.78772149,121430.0,121420.0,0.02772]
[1760069293533,0.78772149,121430.0,121420.0,0.05124]
[1760069297764,0.40051631,121430.0,121420.0,0.05124]
[1760069297988,0.78772149,121430.0,121420.0,0.05124]
[1760069302262,0.16747631,121430.0,121420.0,0.05124]
[1760069302521,0.16747631,121430.0,121420.0,0.23242925]
[1760069302751,0.78768149,121430.0,121420.0,0.2159575]
[1760069303207,0.78768149,121430.0,121420.0,0.05124]
[1760069303444,0.78768149,121430.0,121420.0,0.06771175]
[1760069304744,0.55468149,121430.0,121420.0,0.05124]
[1760069304967,0.78768149,121430.0,121420.0,0.05124]
[1760069306320,0.55468149,121430.0,121420.0,0.05124]
[1760069306541,0.78768149,121430.0,121420.0,0.05124]
[1760069307234,0.55468149,121430.0,121420.0,0.05124]
[1760069307462,0.78768149,121430.0,121420.0,0.05124]
[1760069307652,0.55468149,121430.0,121420.0,0.05124]
[1760069307898,0.78768149,121430.0,121420.0,0.05124]
[1760069308561,0.40047631,121430.0,121420.0,0.05124]
[1760069308784,0.78768149,121430.0,121420.0,0.05124]
[1760069309237,0.55468149,121430.0,121420.0,0.05124]
[1760069309459,0.78768149,121430.0,121420.0,0.23242925]
[1760069309683,0.78768149,121430.0,121420.0,0.2159575]
[1760069310354,0.55468149,121430.0,121420.0,0.2159575]
[1760069310578,0.78768149,121430.0,121420.0,0.2159575]
[1760069310833,0.55468149,121430.0,121420.0,0.05124]
[1760069311058,0.78768149,121430.0,121420.0,0.05124]
[1760069311273,0.40047631,121430.0,121420.0,0.05124]
[1760069311492,0.78768149,121430.0,121420.0,0.05124]
[1760069311711,0.55468149,121430.0,121420.0,0.05124]
[1760069311936,0.78768149,121430.0,121420.0,0.05124]
[1760069312286,0.79538879,121430.0,121420.0,0.05124]
[1760069313328,0.17518361,121430.0,121420.0,0.23242925]
[1760069313550,0.24347967,121430.0,121420.0,0.60316268]
[1760069313740,0.40818361,121430.0,121420.0,0.2159575]
[1760069314552,0.79538879,121430.0,121420.0,0.05124]
[1760069314994,0.40818361,121430.0,121420.0,0.05124]
[1760069315211,0.79538879,121430.0,121420.0,0.05124]
[1760069316070,0.40818361,121430.0,121420.0,0.05124]
[1760069316389,0.79538879,121430.0,121420.0,0.2159575]
[1760069319293,0.79538879,121430.0,121420.0,0.05124]
[1760069320444,0.56238879,121430.0,121420.0,0.05124]
[1760069320663,0.79538879,121430.0,121420.0,0.05124]
[1760069322721,0.56238879,121430.0,121420.0,0.05124]
[1760069322945,0.79538879,121430.0,121420.0,0.05124]
[1760069323392,0.79538879,121430.0,121420.0,0.2159575]
[1760069324273,0.24347967,121430.0,121420.0,0.2159575]
[1760069324513,0.01047967,121430.0,121420.0,0.2159575]
[1760069324740,0.17518361,121430.0,121420.0,0.2159575]
[1760069324968,0.40818361,121430.0,121420.0,0.2159575]
[1760069325186,0.17518361,121430.0,121420.0,0.2159575]
[1760069325439,0.40818361,121430.0,121420.0,0.2159575]
[1760069325664,0.17518361,121430.0,121420.0,0.2159575]
[1760069326091,0.40818361,121430.0,121420.0,0.05124]
[1760069326841,0.79538879,121430.0,121420.0,0.05124]
[1760069327064,0.56238879,121430.0,121420.0,0.2159575]
[1760069327297,0.79538879,121430.0,121420.0,0.2159575]
[1760069328017,0.40818361,121430.0,121420.0,0.2159575]
[1760069328471,0.17518361,121430.0,121420.0,0.05124]
[1760069328699,0.40818361,121430.0,121420.0,0.05124]
[1760069328921,0.17518361,121430.0,121420.0,0.05124]
[1760069329137,0.40818361,121430.0,121420.0,0.2159575]
[1760069329809,0.7954021,121430.0,121420.0,0.05124]
[1760069330027,0.5624021,121430.0,121420.0,0.05124]
[1760069330254,0.1647175,121420.0,121410.0,0.03507]
[1760069330479,0.55192268,121420.0,121410.0,0.0505]
[1760069330699,0.1647175,121420.0,121410.0,0.0505]
[1760069330923,0.55398075,121420.0,121410.0,0.0505]
[1760069331632,0.94118593,121420.0,121410.0,0.0505]
[1760069331847,0.16473107,121410.0,121400.0,0.38328779]
[1760069332098,0.78493625,121410.0,121400.0,0.03507]
[1760069332336,0.7941994,121410.0,121400.0,0.01209]
[1760069332568,0.16474464,121400.0,121390.0,0.03507]
[1760069332778,0.55194982,121400.0,121390.0,0.03507]
[1760069333018,0.55194982,121400.0,121390.0,0.0505]
[1760069333019,0.55297902,121400.0,121390.0,0.0505]
[1760069333460,0.16577384,121400.0,121390.0,0.0505]
[1760069333702,0.55297902,121400.0,121390.0,0.0505]
[1760069334361,0.55297902,121400.0,121390.0,0.05864664]
[1760069334790,0.55297902,121400.0,121390.0,0.05964664]
[1760069335008,0.78597902,121400.0,121390.0,0.05964664]
[1760069337098,0.39877384,121400.0,121390.0,0.05964664]
[1760069337516,0.78597902,121400.0,121390.0,0.05964664]
[1760069337787,0.59795545,121400.0,121390.0,0.05964664]
[1760069338000,0.76270009,121400.0,121390.0,0.05964664]
[1760069338900,0.76270009,121400.0,121390.0,0.0515]
[1760069339141,1.14990527,121400.0,121390.0,0.02852]
[1760069339381,1.14990527,121400.0,121390.0,0.001]
[1760069339584,0.939155,121400.0,121390.0,0.001]
[1760069340001,1.172155,121400.0,121390.0,0.001]
[1760069340211,0.939155,121400.0,121390.0,0.01643]
[1760069340434,0.39774464,121400.0,121390.0,0.0514]
[1760069340647,0.39774464,121400.0,121390.0,0.0504]
[1760069340860,0.16474464,121400.0,121390.0,0.0504]
[1760069341071,0.39774464,121400.0,121390.0,0.05849536]
[1760069341949,0.39774464,121400.0,121390.0,0.22325357]
[1760069342153,0.16474464,121400.0,121390.0,0.22325357]
[1760069342363,0.39774464,121400.0,121390.0,0.22325357]
[1760069342580,0.16474464,121400.0,121390.0,0.22325357]
[1760069342838,0.39774464,121400.0,121390.0,0.22325357]
[1760069343074,0.39774464,121400.0,121390.0,0.05849536]
[1760069347237,0.16474464,121400.0,121390.0,0.05849536]
[1760069347444,0.39774464,121400.0,121390.0,0.05849536]
[1760069348504,0.16474464,121400.0,121390.0,0.22325357]
[1760069348713,0.39774464,121400.0,121390.0,0.22325357]
[1760069349764,0.16474464,121400.0,121390.0,0.22325357]
[1760069349984,0.08568,121410.0,121400.0,0.16473861]
[1760069350188,0.08568,121410.0,121400.0,0.73353185]
[1760069350411,0.25058394,121430.0,121410.0,0.16471873]
[1760069350618,0.2162,121420.0,121410.0,0.17638873]
[1760069351068,0.0002,121430.0,121420.0,0.1647175]
[1760069351284,0.0002,121430.0,121420.0,0.74998249]
[1760069351499,0.21552,121430.0,121420.0,0.73351074]
[1760069351749,0.21552,121430.0,121420.0,0.75824587]
[1760069351750,0.2332,121430.0,121420.0,0.75824587]
[1760069351953,0.2332,121430.0,121420.0,0.24213263]
[1760069352182,0.0002,121430.0,121420.0,0.24213263]
[1760069352387,0.2332,121430.0,121420.0,0.24213263]
[1760069355802,0.2347433,121430.0,121420.0,0.24213263]
[1760069357130,0.39944724,121430.0,121420.0,0.24213263]
[1760069359911,0.39944724,121430.0,121420.0,0.2419327]
[1760069361228,0.2347433,121430.0,121420.0,0.2419327]
[1760069362779,0.39944724,121430.0,121420.0,0.2419327]
[1760069368475,0.39944724,121430.0,121420.0,0.05248007]
[1760069368476,0.16644724,121430.0,121420.0,0.05248007]
[1760069368704,0.91552048,121430.0,121420.0,0.02853007]
[1760069370088,0.91552048,121430.0,121420.0,0.05248007]
[1760069370325,0.39940724,121430.0,121420.0,0.05248007]
[1760069371584,0.1647175,121420.0,121410.0,0.01167]
[1760069371835,0.76651074,121420.0,121410.0,0.02873]
[1760069372061,0.2503975,121420.0,121410.0,0.02873]
[1760069372316,0.68083074,121420.0,121410.0,0.02873]
[1760069372495,0.99947074,121420.0,121410.0,0.02873]
[1760069375966,0.99947074,121420.0,121410.0,0.05196]
[1760069377059,1.00049969,121420.0,121410.0,0.05196]
[1760069378199,1.00049969,121420.0,121410.0,0.02873]
[1760069378633,0.48438645,121420.0,121410.0,0.02873]
[1760069378884,1.00049969,121420.0,121410.0,0.05196]
[1760069379308,1.00049969,121420.0,121410.0,0.02873]
[1760069381528,1.00049969,121420.0,121410.0,0.05196]
[1760069384846,1.00049969,121420.0,121410.0,0.02873]
[1760069385260,1.00049969,121420.0,121410.0,0.05196]
[1760069385689,1.00049969,121420.0,121410.0,0.02873]
[1760069386981,0.16473107,121410.0,121400.0,0.0349]
[1760069387196,0.16474464,121400.0,121390.0,0.06860103]
[1760069387405,0.16474464,121400.0,121390.0,0.08527103]
[1760069388091,0.39770464,121400.0,121390.0,0.07722105]
[1760069389805,0.68085788,121400.0,121390.0,0.02866]
[1760069390044,0.16475821,121390.0,121380.0,0.01304557]
[1760069390250,0.68087145,121390.0,121380.0,0.01319687]
[1760069390508,0.68087145,121390.0,121380.0,0.02986687]
[1760069390723,0.76655145,121390.0,121380.0,0.02986687]
[1760069392077,0.76655145,121390.0,121380.0,0.00152687]
[1760069393826,0.99955145,121390.0,121380.0,0.00152687]
[1760069394748,0.99955145,121390.0,121380.0,0.00252687]
[1760069395178,0.68087145,121390.0,121380.0,0.00152687]
[1760069395394,0.99955145,121390.0,121380.0,0.00152687]
[1760069398968,0.76655145,121390.0,121380.0,0.00152687]
[1760069399180,0.99955145,121390.0,121380.0,0.00152687]
[1760069400512,0.78959721,121390.0,121380.0,0.00152687]
[1760069400765,0.70391721,121390.0,121380.0,0.00152687]
[1760069400989,1.02259668,121390.0,121380.0,0.00152687]
[1760069401663,0.962522,121390.0,121380.0,0.00152687]
[1760069401875,1.281202,121390.0,121380.0,0.00152687]
[1760069402091,1.195522,121390.0,121380.0,0.00152687]
[1760069402308,1.331202,121390.0,121380.0,0.00152687]
[1760069402762,1.71856128,121390.0,121380.0,0.00152687]
[1760069402982,1.438202,121390.0,121380.0,0.00152687]
[1760069403205,2.05856128,121390.0,121380.0,0.00152687]
[1760069403487,2.08871318,121390.0,121380.0,0.00152687]
[1760069403715,2.43155318,121390.0,121380.0,0.00152687]
[1760069404108,2.43163318,121390.0,121380.0,0.00152687]
[1760069404778,2.43263318,121390.0,121380.0,0.00152687]
[1760069405920,0.16481252,121350.0,121340.0,0.06111377]
[1760069406151,0.8709318,121350.0,121340.0,0.01254]
[1760069406371,0.65322652,121350.0,121340.0,0.01254]
[1760069406588,0.88626652,121350.0,121340.0,0.01254]
[1760069406853,0.8945419,121350.0,121340.0,0.01254]
[1760069407079,0.1648261,121340.0,121330.0,0.37714]
[1760069407330,0.55218538,121340.0,121330.0,0.37714]
[1760069407537,0.55218538,121340.0,121330.0,0.39304]
[1760069407753,0.1648261,121340.0,121330.0,0.39304]
[1760069407980,0.55218538,121340.0,121330.0,0.39304]
[1760069408204,0.78522538,121340.0,121330.0,0.39304]
[1760069409103,0.78522538,121340.0,121330.0,0.39404]
[1760069409310,0.78522538,121340.0,121330.0,0.39504]
[1760069409775,0.78522538,121340.0,121330.0,0.39404]
[1760069411101,0.55218538,121340.0,121330.0,0.39404]
[1760069411317,0.80054909,121340.0,121330.0,0.39304]
[1760069411992,0.80054909,121340.0,121330.0,0.05304]
[1760069412409,0.80054909,121340.0,121330.0,0.05561456]
[1760069412868,0.41318981,121340.0,121330.0,0.05561456]
[1760069413079,0.80054909,121340.0,121330.0,0.05561456]
[1760069413752,0.01532371,121340.0,121330.0,0.22045425]
[1760069413979,0.08572,121350.0,121340.0,0.1648261]
[1760069414203,0.01532938,121350.0,121340.0,0.1932261]
[1760069414420,0.24836938,121350.0,121340.0,0.2178261]
[1760069414639,0.24836938,121350.0,121340.0,0.60518538]
[1760069414893,0.4131819,121350.0,121340.0,0.053]
[1760069415999,0.80054118,121350.0,121340.0,0.053]
[1760069416223,0.80054118,121350.0,121340.0,0.0284]
[1760069416456,0.80821303,121350.0,121340.0,0.0284]
[1760069417553,0.7852118,121350.0,121340.0,0.053]
[1760069418015,0.7852118,121350.0,121340.0,0.0284]
[1760069418451,0.16481252,121350.0,121340.0,0.0284]
[1760069418717,0.7852118,121350.0,121340.0,0.053]
[1760069419425,0.7852118,121350.0,121340.0,0.05505948]
[1760069419882,0.79289185,121350.0,121340.0,0.03045948]
[1760069420115,0.8005719,121350.0,121340.0,0.03045948]
[1760069420363,0.5675319,121350.0,121340.0,0.03045948]
[1760069420570,0.8005719,121350.0,121340.0,0.03045948]
[1760069420769,0.7852118,121350.0,121340.0,0.03045948]
[1760069421251,0.42089435,121350.0,121340.0,0.03045948]
[1760069421482,0.80057302,121350.0,121340.0,0.03045948]
[1760069421705,0.80057458,121350.0,121340.0,0.03045948]
[1760069422148,0.80057458,121350.0,121340.0,0.05505948]
[1760069422371,0.80057458,121350.0,121340.0,0.03045948]
[1760069422878,0.7852118,121350.0,121340.0,0.03045948]
[1760069423100,0.80825844,121350.0,121340.0,0.03045948]
[1760069424010,0.80825844,121350.0,121340.0,0.05505948]
[1760069425585,0.42089916,121350.0,121340.0,0.05505948]
[1760069425810,0.80825844,121350.0,121340.0,0.05505948]
[1760069426493,0.57521844,121350.0,121340.0,0.05505948]
[1760069426718,0.89397844,121350.0,121340.0,0.05505948]
[1760069428734,0.50661916,121350.0,121340.0,0.05505948]
[1760069428985,0.89397844,121350.0,121340.0,0.05505948]
[1760069430220,0.42089916,121350.0,121340.0,0.05505948]
[1760069430434,0.89397844,121350.0,121340.0,0.05505948]
[1760069430883,0.66093844,121350.0,121340.0,0.05505948]
[1760069431122,0.89397844,121350.0,121340.0,0.03045948]
[1760069432722,0.50661916,121350.0,121340.0,0.03045948]
[1760069434289,0.47293297,121350.0,121340.0,0.03045948]
[1760069435403,0.47293297,121350.0,121340.0,0.05308948]
[1760069435629,0.47293297,121350.0,121340.0,0.44044876]
[1760069436478,0.47293297,121350.0,121340.0,0.05308948]
[1760069441852,0.16481252,121350.0,121340.0,0.05308948]
[1760069442082,0.25053252,121350.0,121340.0,0.05308948]
[1760069442315,0.48357252,121350.0,121340.0,0.05308948]
[1760069443718,0.48357252,121350.0,121340.0,0.03045948]
[1760069444179,0.48357252,121350.0,121340.0,0.05308948]
[1760069446220,0.49898866,121350.0,121340.0,0.05308948]
[1760069446449,0.48357252,121350.0,121340.0,0.03045948]
[1760069446691,0.65330791,121350.0,121340.0,0.00205948]
[1760069447182,0.88634791,121350.0,121340.0,0.00205948]
[1760069447411,0.88634157,121350.0,121340.0,0.00205948]
[1760069447825,0.65330157,121350.0,121340.0,0.00205948]
[1760069448264,0.88634157,121350.0,121340.0,0.00205948]
[1760069448693,0.49898229,121350.0,121340.0,0.01848948]
[1760069448904,0.88634157,121350.0,121340.0,0.01848948]
[1760069449453,0.8709318,121350.0,121340.0,0.01848948]
[1760069451089,0.8709318,121350.0,121340.0,0.00205948]
[1760069452662,0.8709318,121350.0,121340.0,0.01848948]
[1760069454637,0.8709318,121350.0,121340.0,0.03068948]
[1760069455747,0.16481252,121350.0,121340.0,0.03068948]
[1760069455985,0.48357252,121350.0,121340.0,0.05502948]
[1760069456211,0.39785252,121350.0,121340.0,0.05502948]
[1760069456442,0.16481252,121350.0,121340.0,0.44238876]
[1760069456670,0.08572,121350.0,121340.0,0.99457414]
[1760069456886,0.16480103,121380.0,121360.0,0.16479795]
[1760069457185,0.08587119,121380.0,121370.0,0.44032928]
[1760069457418,0.31891119,121380.0,121370.0,0.44032928]
[1760069457656,0.48368298,121380.0,121370.0,0.44032928]
[1760069458330,0.16492298,121380.0,121370.0,0.44032928]
[1760069458570,0.48368298,121380.0,121370.0,0.44032928]
[1760069459808,0.53368298,121380.0,121370.0,0.44032928]
[1760069460486,0.30064298,121380.0,121370.0,0.02863]
[1760069460703,0.16478536,121370.0,121360.0,0.42389928]
[1760069460977,0.16478536,121370.0,121360.0,0.44032928]
[1760069461631,0.16478536,121370.0,121360.0,0.05297]
[1760069462073,0.39782536,121370.0,121360.0,0.05297]
[1760069463405,0.16478536,121370.0,121360.0,0.05297]
[1760069463621,0.39778536,121370.0,121360.0,0.56936474]
[1760069463837,0.39778536,121370.0,121360.0,0.57039431]
[1760069464060,0.39778536,121370.0,121360.0,0.05399957]
[1760069464595,0.16478536,121370.0,121360.0,0.02965957]
[1760069464883,0.16478536,121370.0,121360.0,0.00102957]
[1760069464884,0.9141801,121370.0,121360.0,0.00102957]
[1760069467686,0.39778536,121370.0,121360.0,0.00102957]
[1760069467896,0.9141801,121370.0,121360.0,0.00102957]
[1760069471678,0.39778536,121370.0,121360.0,0.00102957]
[1760069471890,0.9141801,121370.0,121360.0,0.00102957]
[1760069473017,0.9999001,121370.0,121360.0,0.00102957]
[1760069473233,0.9141801,121370.0,121360.0,0.00102957]
[1760069473443,0.48350536,121370.0,121360.0,0.00102957]
[1760069473686,0.16478536,121370.0,121360.0,0.00102957]
[1760069473918,0.39778536,121370.0,121360.0,0.00102957]
[1760069474139,0.16478536,121370.0,121360.0,0.00102957]
[1760069474361,0.48350536,121370.0,121360.0,0.00102957]
[1760069476153,0.16478536,121370.0,121360.0,0.00102957]
[1760069476370,0.48350536,121370.0,121360.0,0.00102957]
[1760069477442,0.16478536,121370.0,121360.0,0.00102957]
[1760069477673,0.16478536,121370.0,121360.0,0.01679957]
[1760069477897,0.48350536,121370.0,121360.0,0.01679957]
[1760069478366,0.16478536,121370.0,121360.0,0.01679957]
[1760069478598,0.48350536,121370.0,121360.0,0.01679957]
[1760069479255,0.25050536,121370.0,121360.0,0.01679957]
[1760069479477,0.25050536,121370.0,121360.0,0.56764431]
[1760069479698,0.48350536,121370.0,121360.0,0.56764431]
[1760069480392,0.16492298,121380.0,121360.0,0.73244325]
[1760069480628,0.48350536,121370.0,121360.0,0.54379474]
[1760069481312,0.48350536,121370.0,121360.0,0.56661474]
[1760069481785,0.25050536,121370.0,121360.0,0.05022]
[1760069481999,0.48350536,121370.0,121360.0,0.05022]
[1760069482694,0.25050536,121370.0,121360.0,0.05022]
[1760069482922,0.48350536,121370.0,121360.0,0.05022]
[1760069483991,0.48350536,121370.0,121360.0,0.56661474]
[1760069485403,0.25050536,121370.0,121360.0,0.56661474]
[1760069485624,0.48350536,121370.0,121360.0,0.57471928]
[1760069486727,0.48350536,121370.0,121360.0,0.56661474]
[1760069486965,0.25050536,121370.0,121360.0,0.05022]
[1760069487185,0.48350536,121370.0,121360.0,0.05124957]
[1760069493362,0.48350536,121370.0,121360.0,0.56764431]
[1760069493575,0.48350536,121370.0,121360.0,0.02842957]
[1760069494208,0.48350536,121370.0,121360.0,0.05297957]
[1760069495480,0.25050536,121370.0,121360.0,0.05297957]
[1760069495693,0.25050536,121370.0,121360.0,0.00102957]
[1760069495904,0.48350536,121370.0,121360.0,0.00102957]
[1760069496761,0.7669001,121370.0,121360.0,0.00102957]
[1760069496979,0.9998601,121370.0,121360.0,0.00102957]
[1760069498284,0.7669001,121370.0,121360.0,0.00102957]
[1760069498500,0.48346536,121370.0,121360.0,0.00102957]
[1760069498921,0.9998601,121370.0,121360.0,0.00102957]
[1760069500254,0.25050536,121370.0,121360.0,0.00102957]
[1760069500478,0.48350536,121370.0,121360.0,0.00102957]
[1760069501356,0.53350536,121370.0,121360.0,0.00102957]
[1760069501624,0.30050536,121370.0,121360.0,0.00102957]
[1760069501874,0.53350536,121370.0,121360.0,0.00102957]
[1760069502640,1.0499001,121370.0,121360.0,0.00102957]
[1760069502889,0.53350536,121370.0,121360.0,0.01765957]
[1760069503180,0.53350536,121370.0,121360.0,0.00102957]
[1760069505399,0.21478536,121370.0,121360.0,0.00102957]
[1760069505619,0.53350536,121370.0,121360.0,0.00102957]
[1760069506975,1.3899001,121370.0,121360.0,0.00102957]
[1760069507128,1.41298521,121370.0,121360.0,0.00102957]
[1760069508965,0.65589571,121370.0,121360.0,0.00102957]
[1760069509213,0.88889571,121370.0,121360.0,0.00102957]
[1760069509701,0.88989571,121370.0,121360.0,0.00102957]
[1760069509919,0.89089571,121370.0,121360.0,0.00102957]
[1760069512207,0.95181038,121370.0,121360.0,0.00102957]
[1760069512392,0.89089571,121370.0,121360.0,0.00102957]
[1760069516830,0.95124195,121370.0,121360.0,0.00102957]
[1760069521448,0.71824195,121370.0,121360.0,0.00102957]
[1760069521668,0.95124195,121370.0,121360.0,0.00102957]
[1760069524111,1.33860031,121370.0,121360.0,0.00102957]
[1760069524329,1.34630328,121370.0,121360.0,0.00102957]
[1760069524547,0.95894492,121370.0,121360.0,0.00102957]
[1760069524812,1.34630328,121370.0,121360.0,0.00102957]
[1760069525457,1.34632973,121370.0,121360.0,0.00102957]
[1760069526891,0.95897137,121370.0,121360.0,0.00102957]
[1760069527109,1.34632973,121370.0,121360.0,0.00102957]
[1760069531618,0.72597137,121370.0,121360.0,0.00102957]
[1760069531834,0.32562513,121370.0,121360.0,0.43874793]
[1760069532040,0.55088216,121370.0,121360.0,0.43874793]
[1760069532252,0.53546536,121370.0,121360.0,0.46350094]
[1760069532709,0.53546536,121370.0,121360.0,0.05249258]
[1760069533130,0.92282372,121370.0,121360.0,0.02578258]
[1760069533564,0.28435152,121370.0,121360.0,0.02578258]
[1760069533804,0.28430456,121370.0,121360.0,0.04082258]
[1760069534018,0.51626456,121370.0,121360.0,0.04082258]
[1760069534223,0.48446536,121370.0,121360.0,0.04082258]
[1760069535686,0.48346536,121370.0,121360.0,0.04082258]
[1760069536101,0.48346536,121370.0,121360.0,0.46350094]
[1760069536102,0.25050536,121370.0,121360.0,0.46350094]
[1760069536306,0.48346536,121370.0,121360.0,0.46350094]
[1760069536924,0.16478536,121370.0,121360.0,0.8508593]
[1760069537130,0.25050536,121370.0,121360.0,0.8508593]
[1760069537351,0.16478536,121370.0,121360.0,0.8508593]
[1760069537550,0.48346536,121370.0,121360.0,0.8508593]
[1760069537967,0.48346536,121370.0,121360.0,0.46350094]
[1760069538398,0.48346536,121370.0,121360.0,0.07614258]
[1760069538607,0.48346536,121370.0,121360.0,0.46350094]
[1760069539646,0.48346536,121370.0,121360.0,0.07614258]
[1760069539856,0.25050536,121370.0,121360.0,0.43985094]
[1760069540285,0.48346536,121370.0,121360.0,0.43985094]
[1760069540719,0.25050536,121370.0,121360.0,0.43985094]
[1760069541155,0.48346536,121370.0,121360.0,0.43985094]
[1760069541615,0.16478536,121370.0,121360.0,0.46350094]
[1760069541826,0.48346536,121370.0,121360.0,0.46350094]
[1760069544350,0.48346536,121370.0,121360.0,0.04082258]
[1760069544576,0.87082372,121370.0,121360.0,0.02578258]
[1760069545269,0.48346536,121370.0,121360.0,0.02578258]
[1760069545495,0.25050536,121370.0,121360.0,0.02578258]
[1760069545720,0.48346536,121370.0,121360.0,0.02578258]
[1760069546179,0.48346536,121370.0,121360.0,0.04082258]
[1760069546403,0.25050536,121370.0,121360.0,0.05249258]
[1760069546642,0.16478536,121370.0,121360.0,0.43985094]
[1760069546862,0.48346536,121370.0,121360.0,0.46350094]
[1760069547810,0.25050536,121370.0,121360.0,0.43985094]
[1760069548043,0.48346536,121370.0,121360.0,0.41314094]
[1760069548479,0.48346536,121370.0,121360.0,0.02578258]
[1760069548947,0.48346536,121370.0,121360.0,0.41314094]
[1760069549380,0.48346536,121370.0,121360.0,0.42818094]
[1760069549817,0.48346536,121370.0,121360.0,0.46350094]
[1760069550294,0.48346536,121370.0,121360.0,0.43985094]
[1760069550642,0.16478536,121370.0,121360.0,0.43985094]
[1760069550855,0.48342536,121370.0,121360.0,0.46350094]
[1760069551656,0.16478536,121370.0,121360.0,0.46350094]
[1760069551889,0.48342536,121370.0,121360.0,0.46350094]
[1760069552737,0.16478536,121370.0,121360.0,0.46350094]
[1760069552953,0.48342536,121370.0,121360.0,0.46350094]
[1760069553723,0.16478536,121370.0,121360.0,0.46350094]
[1760069553944,0.48342536,121370.0,121360.0,0.46350094]
[1760069554731,0.16478536,121370.0,121360.0,0.46350094]
[1760069554951,0.48342536,121370.0,121360.0,0.46350094]
[1760069555189,0.16492298,121380.0,121360.0,1.01565824]
[1760069555422,0.08587119,121380.0,121370.0,0.97488208]
[1760069555644,0.08587119,121380.0,121370.0,0.99123208]
[1760069555645,0.31879119,121380.0,121370.0,0.99123208]
[1760069555870,0.23307119,121380.0,121370.0,0.99123208]
[1760069556096,0.23307119,121380.0,121370.0,1.01598015]
[1760069556611,0.39784298,121380.0,121370.0,0.62862179]
[1760069557496,0.23307119,121380.0,121370.0,0.62862179]
[1760069557711,0.23307119,121380.0,121370.0,1.01598015]
[1760069560646,0.23307119,121380.0,121370.0,1.01649489]
[1760069562959,0.00015119,121380.0,121370.0,1.01649489]
[1760069563188,0.23307119,121380.0,121370.0,1.01649489]
[1760069565731,0.00015119,121380.0,121370.0,1.01649489]
[1760069565961,0.23303119,121380.0,121370.0,1.01649489]
[1760069569853,0.00015119,121380.0,121370.0,1.01649489]
[1760069570304,0.00015119,121380.0,121370.0,0.24177817]
[1760069570520,0.00015119,121380.0,121370.0,1.01649489]
[1760069579882,0.00015119,121380.0,121370.0,0.85170953]
[1760069580091,0.16492298,121380.0,121370.0,0.85170953]
[1760069581147,0.16492298,121380.0,121370.0,0.07699281]
[1760069581369,0.39776298,121380.0,121370.0,0.46435117]
[1760069582295,0.16492298,121380.0,121370.0,0.46435117]
[1760069582508,0.39776298,121380.0,121370.0,0.46435117]
[1760069585027,0.16492298,121380.0,121370.0,0.46435117]
[1760069585231,0.39776298,121380.0,121370.0,0.46435117]
[1760069585647,0.39776298,121380.0,121370.0,0.59324471]
[1760069585858,0.16492298,121380.0,121370.0,0.59324471]
[1760069586065,0.39776298,121380.0,121370.0,0.59324471]
[1760069586269,0.16492298,121380.0,121370.0,0.59324471]
[1760069586477,0.39776298,121380.0,121370.0,0.59324471]
[1760069586687,0.16492298,121380.0,121370.0,0.59324471]
[1760069586891,0.39776298,121380.0,121370.0,0.59324471]
[1760069589106,0.39776298,121380.0,121370.0,0.07699281]
[1760069589319,0.16492298,121380.0,121370.0,0.07699281]
[1760069589522,0.39776298,121380.0,121370.0,0.07699281]
[1760069590579,0.39776298,121380.0,121370.0,0.59324471]
[1760069590799,0.16492298,121380.0,121370.0,0.59324471]
[1760069591042,0.39776298,121380.0,121370.0,0.59324471]
[1760069591494,0.16492298,121380.0,121370.0,0.59324471]
[1760069591715,0.39776298,121380.0,121370.0,0.59324471]
[1760069595093,0.16492298,121380.0,121370.0,0.59324471]